Name,Sub Group,Service Area,Expense Type,Narrative,Date,Transaction No,Amount,Supplier Name,Supplier ID,Period,Year
Allerdale Borough Council,DA01,Supplies and Services,Trade Waste,Equipment Costs,19/09/2012,469439,7379.60,CRAEMER UK LTD                ,A01016,6,2012
Allerdale Borough Council,DG99,Supplies and Services,Shared IT,Other Telecommunications Costs,05/09/2012,469440,222.65,SIEMENS FINANCIAL SERVICES    ,A01307,6,2012
Allerdale Borough Council,DF03,Supplies and Services,Document Management - Pay Groups,Franking Machine Costs other,05/09/2012,469441,6000.00,FP TELESET                    ,A00428,6,2012
Allerdale Borough Council,DE14,Supplies and Services,Leisure - Carnegie Theatre,Public Entertaiment,05/09/2012,469443,370.00,MARYPORT FAKESTIVAL           ,M01402,6,2012
Allerdale Borough Council,BA03,Premises related expenditure,Coastal Protection and Inland Flooding,Grounds,05/09/2012,469461,2759.35,STEWART ENGINEERING LIMITED   ,A01614,6,2012
Allerdale Borough Council,EA14,Third Party Payments,Trade Waste,Other Local Authorities,26/09/2012,469462,85963.76,CUMBRIA COUNTY COUNCIL        ,A01124,6,2012
Allerdale Borough Council,DD02,Supplies and Services,Customer Contact Centre - Pay Groups,Photocopier Charges,12/09/2012,469463,7.76,RICOH UK LTD                  ,A00037,6,2012
Allerdale Borough Council,DD02,Supplies and Services,Customer Contact Centre - Pay Groups,Photocopier Charges,12/09/2012,469464,14.55,RICOH UK LTD                  ,A00037,6,2012
Allerdale Borough Council,DA03,Supplies and Services,ES - Public Convenience Cleaning,Purchase of Materials,05/09/2012,469465,935.36,INSTOCK (CHANDLERS)           ,A00050,6,2012
Allerdale Borough Council,EA15,Third Party Payments,Environmental Initiative,Voluntary Organisations,05/09/2012,469466,140.00,AA FENCING UK LTD             ,A01554,6,2012
Allerdale Borough Council,DE01,Supplies and Services,Environmental Protection,Consultants Fees,19/09/2012,469467,661.10,UNITED UTILITIES PLC          ,A01657,6,2012
Allerdale Borough Council,BD05,Premises related expenditure,Parking Services - Multi-storey,Rentals and Lease Charges,26/09/2012,469468,62602.20,RIDDELLTPS                    ,A00824,6,2012
Allerdale Borough Council,BA03,Premises related expenditure,Coastal Protection and Inland Flooding,Grounds,12/09/2012,469469,4622.20,ROLAND HILL (PARSONBY) LTD    ,C00010,6,2012
Allerdale Borough Council,DH08,Supplies and Services,Shared IT,Computer Consumables,05/09/2012,469470,33.82,HSBC CARD SERVICES            ,X00000,6,2012
Allerdale Borough Council,DA01,Supplies and Services,Health and Safety,Equipment Costs,19/09/2012,469471,53.14,POSTURITE (UK) LTD            ,A00336,6,2012
Allerdale Borough Council,DC03,Supplies and Services,Food and Occupational Health,Laundry,05/09/2012,469472,170.44,SUNLIGHT SERVICE GROUP        ,A00027,6,2012
Allerdale Borough Council,DD05,Supplies and Services,Parking Services - Onstreet,Use of External Printers,05/09/2012,469473,70.00,FIRPRESS PRINTERS             ,A00063,6,2012
Allerdale Borough Council,DD05,Supplies and Services,Parking Services - Onstreet,Use of External Printers,05/09/2012,469474,853.00,FIRPRESS PRINTERS             ,A00063,6,2012
Allerdale Borough Council,DA01,Supplies and Services,Leisure - Carnegie Theatre,Equipment Costs,05/09/2012,469475,105.00,EVERTAUT LTD                  ,A01681,6,2012
Allerdale Borough Council,DE14,Supplies and Services,Leisure - Carnegie Theatre,Public Entertaiment,05/09/2012,469476,20956.00,SOLFEST LTD      ,A01060,6,2012
Allerdale Borough Council,DE14,Supplies and Services,Leisure - Carnegie Theatre,Public Entertaiment,05/09/2012,469477,580.00,Redacted information - included personal information ,M00406,6,2012
Allerdale Borough Council,EA10,Third Party Payments,Banking and Interest ,Audit Commission,05/09/2012,469479,2448.00,AUDIT COMMISSION              ,A00002,6,2012
Allerdale Borough Council,DE08,Supplies and Services,Human Resources - Pay Groups,Subscriptions,05/09/2012,469480,86.74,ROYAL MAIL LETTERS            ,X00021,6,2012
Allerdale Borough Council,DD02,Supplies and Services,Parking Services - Pay Groups,Photocopier Charges,12/09/2012,469481,175.66,RICOH UK LTD                  ,A00037,6,2012
Allerdale Borough Council,EA14,Third Party Payments,Trade Waste,Other Local Authorities,26/09/2012,469482,85963.76,CUMBRIA COUNTY COUNCIL        ,A01124,6,2012
Allerdale Borough Council,DE06,Supplies and Services,Redundancies,Professional Services,12/09/2012,469483,3480.00,LEACH CONSULTING & ASSOCIATES ,A01444,6,2012
Allerdale Borough Council,DE06,Supplies and Services,Redundancies,Professional Services,05/09/2012,469484,4058.12,NORTH WEST EMPLOYERS          ,A00139,6,2012
Allerdale Borough Council,DE01,Supplies and Services,Domestic Waste,Consultants Fees,19/09/2012,469485,24.00,DUNDAS CHEMICAL CO (MOSSPARK) ,A00175,6,2012
Allerdale Borough Council,DH99,Supplies and Services,Shared IT,Computer Costs - General,26/09/2012,469486,1345.00,CAPITA BUSINESS SERVICES LTD  ,A01264,6,2012
Allerdale Borough Council,BC05,Premises related expenditure,Corporate Property,Inspections and Services,05/09/2012,469487,375.00,AQUAID (NORTH)                ,A00123,6,2012
Allerdale Borough Council,DC01,Supplies and Services,ES - Parks and Grounds Maintenance,Uniforms,19/09/2012,469488,15.90,ARCO LIMITED                  ,A00045,6,2012
Allerdale Borough Council,DC01,Supplies and Services,ES - Parks and Grounds Maintenance,Uniforms,19/09/2012,469489,30.16,ARCO LIMITED                  ,A00045,6,2012
Allerdale Borough Council,DA03,Supplies and Services,ES - Public Convenience Cleaning,Purchase of Materials,12/09/2012,469490,44.45,INSTOCK (CHANDLERS)           ,A00050,6,2012
Allerdale Borough Council,DE05,Supplies and Services,Leisure - Carnegie Theatre,Licences,05/09/2012,469491,272.24,PERFORMING RIGHTS SOCIETY LTD ,A00400,6,2012
Allerdale Borough Council,AF01,Employee related expenditure,Planning and Development ,External Courses & Seminar Fees,19/09/2012,469492,350.00,TREE LIFE ARBORICULTURAL CONS ,A01675,6,2012
Allerdale Borough Council,AF01,Employee related expenditure,Shared IT Paygroup,External Courses & Seminar Fees,26/09/2012,469493,20000.00,QA LIMITED                    ,A00575,6,2012
Allerdale Borough Council,DH04,Supplies and Services,Shared IT,Computer Data Lines B.T.,19/09/2012,469494,67.90,CABLE & WIRELESS              ,A00934,6,2012
Allerdale Borough Council,DH04,Supplies and Services,Shared IT,Computer Data Lines B.T.,19/09/2012,469495,31.85,CABLE & WIRELESS              ,A00934,6,2012
Allerdale Borough Council,DF02,Supplies and Services,Electoral Registration,Business Reply Licences,05/09/2012,469496,626.07,ROYAL MAIL LETTERS            ,X00021,6,2012
Allerdale Borough Council,DK01,Supplies and Services,Planning and Development ,Statutory Notices,05/09/2012,469497,1081.60,CUMBRIA CC - 3C STUDIO ONLY   ,A00070,6,2012
Allerdale Borough Council,AD01,Employee related expenditure,Environmental Services - Pay Groups,Agency Costs,12/09/2012,469498,232.20,Redacted information - included personal information ,A00176,6,2012
Allerdale Borough Council,AD01,Employee related expenditure,Environmental Services - Pay Groups,Agency Costs,12/09/2012,469499,348.00,Redacted information - included personal information ,A00176,6,2012
Allerdale Borough Council,DK01,Supplies and Services,Planning and Development ,Statutory Notices,05/09/2012,469500,1562.40,CUMBRIA CC - 3C STUDIO ONLY   ,A00070,6,2012
Allerdale Borough Council,DK99,Supplies and Services,Legal Services - Pay Groups,Promotions General,05/09/2012,469501,158.00,CUMBRIA CC - 3C STUDIO ONLY   ,A00070,6,2012
Allerdale Borough Council,CA04,Transport related expenditure,ES - Public Convenience Cleaning,Repairs & Maintenance ,05/09/2012,469502,112.50,GOODFELLOW & SONS             ,A00031,6,2012
Allerdale Borough Council,CA04,Transport related expenditure,ES - Public Convenience Cleaning,Repairs & Maintenance ,05/09/2012,469503,145.83,GOODFELLOW & SONS             ,A00031,6,2012
Allerdale Borough Council,BD02,Premises related expenditure,Property - Tenanted Properties NOT Wigton Props,Electricity,05/09/2012,469504,362.99,BRITISH GAS         ,X00006,6,2012
Allerdale Borough Council,DE06,Supplies and Services,Directorate,Professional Services,05/09/2012,469505,2183.13,CUMBRIA CC - GENERAL A/C      ,A00066,6,2012
Allerdale Borough Council,DH04,Supplies and Services,Shared IT,Computer Data Lines B.T.,19/09/2012,469506,22.95,CABLE & WIRELESS              ,A00934,6,2012
Allerdale Borough Council,EA14,Third Party Payments,Trade Waste,Other Local Authorities,26/09/2012,469507,84781.76,CUMBRIA COUNTY COUNCIL        ,A01124,6,2012
Allerdale Borough Council,DA01,Supplies and Services,Leisure - Carnegie Theatre,Equipment Costs,12/09/2012,469508,760.00,G & M SUPPLIES                ,A00033,6,2012
Allerdale Borough Council,DG03,Supplies and Services,Shared IT,Call Charges,19/09/2012,469509,1136.19,CABLE & WIRELESS              ,A00934,6,2012
Allerdale Borough Council,EA04,Third Party Payments,Recycling,Horticulture,05/09/2012,469510,467.97,FCC RECYCLING (UK) LTD (ALCO) ,A00185,6,2012
Allerdale Borough Council,DH04,Supplies and Services,Shared IT,Computer Data Lines B.T.,05/09/2012,469511,7365.00,CABLE & WIRELESS              ,A00934,6,2012
Allerdale Borough Council,CA99,Transport related expenditure,Gates Travel,General,26/09/2012,469512,1062.69,GATES TRAVEL                  ,A01525,6,2012
Allerdale Borough Council,DE02,Supplies and Services,Legal Services - Pay Groups,Land Registry Fees,02/10/2012,469513,26.00,HM LAND REGISTRY,A00505,6,2012
Allerdale Borough Council,DA03,Supplies and Services,Environmental Services - Pay Groups,Purchase of Materials,05/09/2012,469515,46.85,ALLERDALE - INVOICE SECTION   ,X00034,6,2012
Allerdale Borough Council,QF05,Capital Expenditure,Housing Act 1989 - Facilities for Disabled,To Private Individuals,05/09/2012,469517,10731.00,K BAILIFF & SON LIMITED       ,X00116,6,2012
Allerdale Borough Council,DM99,Supplies and Services,Elections,General,05/09/2012,469518,125.00,THURSBY PARISH HALL COMMITTEE ,M00849,6,2012
Allerdale Borough Council,QF05,Capital Expenditure,Housing Act 1989 - Facilities for Disabled,To Private Individuals,05/09/2012,469519,2910.00,DOLPHIN STAIRLIFTS CUMBRIA    ,X00107,6,2012
Allerdale Borough Council,AB01,Employee related expenditure,Finance and Accounting - Pay Groups,Long Service Awards,05/09/2012,469520,260.00,Redacted information - included personal information ,M01824,6,2012
Allerdale Borough Council,CA01,Transport related expenditure,Recycling,Vehicle Leasing,12/09/2012,469521,7200.00,DOBIES VAUXHALL               ,A00254,6,2012
Allerdale Borough Council,CA01,Transport related expenditure,Recycling,Vehicle Leasing,12/09/2012,469522,3600.00,DOBIES VAUXHALL               ,A00254,6,2012
Allerdale Borough Council,CA01,Transport related expenditure,ES - Parks and Grounds Maintenance,Vehicle Leasing,12/09/2012,469523,3600.00,DOBIES VAUXHALL               ,A00254,6,2012
Allerdale Borough Council,CA01,Transport related expenditure,Domestic Waste,Vehicle Leasing,12/09/2012,469524,3600.00,DOBIES VAUXHALL               ,A00254,6,2012
Allerdale Borough Council,CA01,Transport related expenditure,ES - Street Cleansing,Vehicle Leasing,12/09/2012,469525,3600.00,DOBIES VAUXHALL               ,A00254,6,2012
Allerdale Borough Council,CA01,Transport related expenditure,Trade Waste,Vehicle Leasing,12/09/2012,469526,3600.00,DOBIES VAUXHALL               ,A00254,6,2012
Allerdale Borough Council,BD08,Premises related expenditure,Property - Tenanted Properties NOT Wigton Props,Water & Sewage,12/09/2012,469527,105.76,UNITED UTILITIES ,X00011,6,2012
Allerdale Borough Council,BD08,Premises related expenditure,Corporate Property,Water & Sewage,12/09/2012,469528,110.72,UNITED UTILITIES,X00011,6,2012
Allerdale Borough Council,BD08,Premises related expenditure,Corporate Property,Water & Sewage,12/09/2012,469529,31.47,UNITED UTILITIES,X00011,6,2012
Allerdale Borough Council,DA01,Supplies and Services,Leisure - Carnegie Theatre,Equipment Costs,12/09/2012,469530,228.00,FIRTH FABRICATION SERVICES    ,C00020,6,2012
Allerdale Borough Council,DK99,Supplies and Services,Leisure - Carnegie Theatre,Promotions General,12/09/2012,469531,75.00,SEAN MCGHEE/REEL RESS         ,A00625,6,2012
Allerdale Borough Council,DA01,Supplies and Services,Carnegie Redevelopment,Equipment Costs,26/09/2012,469532,6408.21,NORTHERN STAGE SERVICES LTD   ,C00053,6,2012
Allerdale Borough Council,BA01,Premises related expenditure,Corporate Property,External Maintenance & Decoration,12/09/2012,469533,366.67,BB GLASS LTD                  ,C00001,6,2012
Allerdale Borough Council,QC01,Capital Expenditure,Keswick Museum Enhancement Project,External Contractor Payments,12/09/2012,469534,721.90,J T ATKINSON & SONS LTD       ,A01652,6,2012
Allerdale Borough Council,BD08,Premises related expenditure,Corporate Property,Water & Sewage,12/09/2012,469535,671.94,UNITED UTILITIES ,X00011,6,2012
Allerdale Borough Council,BD08,Premises related expenditure,Corporate Property,Water & Sewage,12/09/2012,469536,12.58,UNITED UTILITIES,X00011,6,2012
Allerdale Borough Council,BD08,Premises related expenditure,Corporate Property,Water & Sewage,12/09/2012,469537,91.95,UNITED UTILITIES,X00011,6,2012
Allerdale Borough Council,QC01,Capital Expenditure,Keswick Museum Enhancement Project,External Contractor Payments,19/09/2012,469538,89.10,J T ATKINSON & SONS LTD       ,A01652,6,2012
Allerdale Borough Council,DB02,Supplies and Services,Leisure - Carnegie Theatre,Bar Provision,26/09/2012,469540,759.77,CLASSIC DRINKS                ,A00413,6,2012
Allerdale Borough Council,DA01,Supplies and Services,Recycling,Equipment Costs,26/09/2012,469541,16.00,PLASTIC OMNIUM URBAN SYST LTD ,A00159,6,2012
Allerdale Borough Council,BB01,Premises related expenditure,Leisure - Carnegie Theatre,Internal Maintenance,26/09/2012,469542,650.00,RAFFERTY DECORATING SERV LTD  ,C00117,6,2012
Allerdale Borough Council,BD03,Premises related expenditure,Corporate Property,Gas,12/09/2012,469543,96.70,BRITISH GAS     ,X00006,6,2012
Allerdale Borough Council,BD03,Premises related expenditure,Corporate Property,Gas,12/09/2012,469544,82.87,BRITISH GAS       ,X00006,6,2012
Allerdale Borough Council,BD03,Premises related expenditure,Corporate Property,Gas,12/09/2012,469545,134.06,BRITISH GAS      ,X00006,6,2012
Allerdale Borough Council,EB06,Third Party Payments,Maryport Wave,The Wave,12/09/2012,469546,15918.00,CARLISLE LEISURE LTD          ,A00136,6,2012
Allerdale Borough Council,EB05,Third Party Payments,Leisure - Sports & Leisure Centres,Leisure Centres,12/09/2012,469547,47829.67,CARLISLE LEISURE LTD          ,A00136,6,2012
Allerdale Borough Council,DA01,Supplies and Services,Leisure - Carnegie Theatre,Equipment Costs,12/09/2012,469548,52.74,CITY ELECTRICAL FACTORS LTD   ,A00395,6,2012
Allerdale Borough Council,QE02,Capital Expenditure,IT Infrastructure,Purchase of Fixed Plant & Equipment,26/09/2012,469549,172.89,PROBRAND                      ,A00040,6,2012
Allerdale Borough Council,DD01,Supplies and Services,Document Management - Pay Groups,General stationery,26/09/2012,469550,348.95,LYRECO                        ,A00043,6,2012
Allerdale Borough Council,DD01,Supplies and Services,Document Management - Pay Groups,General stationery,26/09/2012,469551,208.72,LYRECO                        ,A00043,6,2012
Allerdale Borough Council,DD01,Supplies and Services,Document Management - Pay Groups,General stationery,26/09/2012,469552,88.88,LYRECO                        ,A00043,6,2012
Allerdale Borough Council,DD01,Supplies and Services,Document Management - Pay Groups,General stationery,26/09/2012,469553,70.00,LYRECO                        ,A00043,6,2012
Allerdale Borough Council,AF01,Employee related expenditure,Organisational Improvement Plan,External Courses & Seminar Fees,12/09/2012,469554,1900.00,LEACH CONSULTING & ASSOCIATES ,A01444,6,2012
Allerdale Borough Council,QC01,Capital Expenditure,Keswick Museum Enhancement Project,External Contractor Payments,12/09/2012,469555,665.00,BOX CLEVER STORAGE            ,A00880,6,2012
Allerdale Borough Council,BC06,Premises related expenditure,Corporate Property,Legionella Inspections and Services,12/09/2012,469556,99.26,RENTOKIL INITIAL UK LTD       ,A00500,6,2012
Allerdale Borough Council,QC01,Capital Expenditure,Carnegie Redevelopment,External Contractor Payments,19/09/2012,469557,1052.45,NORTHERN STAGE SERVICES LTD   ,C00053,6,2012
Allerdale Borough Council,QC01,Capital Expenditure,Carnegie Redevelopment,External Contractor Payments,12/09/2012,469558,146.38,RHYTHM GROUP                  ,A01139,6,2012
Allerdale Borough Council,QE02,Capital Expenditure,IT Infrastructure,Purchase of Fixed Plant & Equipment,26/09/2012,469559,13166.00,NETCENTRIX LIMITED            ,A00106,6,2012
Allerdale Borough Council,QE02,Capital Expenditure,IT Infrastructure,Purchase of Fixed Plant & Equipment,26/09/2012,469560,13166.00,NETCENTRIX LIMITED            ,A00106,6,2012
Allerdale Borough Council,DA04,Supplies and Services,Silloth TIC,Supplies for Resale,12/09/2012,469561,379.45,HILLS BOOKS LTD               ,A00271,6,2012
Allerdale Borough Council,DA01,Supplies and Services,Revenue,Equipment Costs,12/09/2012,469562,474.00,CUMBRIA BLINDS                ,A00183,6,2012
Allerdale Borough Council,DH10,Supplies and Services,Shared IT,Software Licences,24/10/2012,469563,1960.05,GANDLAKE LIMITED              ,A00212,6,2012
Allerdale Borough Council,DH11,Supplies and Services,Parking Services - Pay Groups,Software Maintenance,26/09/2012,469564,39.90,CHIPSIDE LIMITED              ,A00004,6,2012
Allerdale Borough Council,DH08,Supplies and Services, ,Computer Consumables,19/09/2012,469565,155.42,INSIGHT DIRECT (UK) LTD       ,A00054,6,2012
Allerdale Borough Council,DA03,Supplies and Services,ES - Public Convenience Cleaning,Purchase of Materials,12/09/2012,469566,95.40,INSTOCK (CHANDLERS)           ,A00050,6,2012
Allerdale Borough Council,DE06,Supplies and Services,Animal Welfare,Professional Services,12/09/2012,469567,3191.00,WHINMILL FARM CANINE CENTRE   ,A00117,6,2012
Allerdale Borough Council,EA99,Third Party Payments,Parking Services - Multi-storey,General,26/09/2012,469568,48251.67,PARKSAFE                      ,A00647,6,2012
Allerdale Borough Council,DE01,Supplies and Services,ES - Street Cleansing,Consultants Fees,12/09/2012,469569,50.00,MICHAEL DOUGLAS AUTO SALVAGE  ,A00078,6,2012
Allerdale Borough Council,QF05,Capital Expenditure,Housing Act 1989 - Facilities for Disabled,To Private Individuals,12/09/2012,469570,2986.45,STOBBARTS LTD                 ,C00002,6,2012
Allerdale Borough Council,DE06,Supplies and Services,Leisure - Arts Development,Professional Services,19/09/2012,469571,50.00,ALL ABOUT AUDIENCES           ,A01677,6,2012
Allerdale Borough Council,BC05,Premises related expenditure,Corporate Property,Inspections and Services,12/09/2012,469572,375.00,AQUAID (NORTH)                ,A00123,6,2012
Allerdale Borough Council,DG03,Supplies and Services,Shared IT,Call Charges,26/09/2012,469573,18.49,CABLE & WIRELESS              ,A00934,6,2012
Allerdale Borough Council,DM04,Supplies and Services,Local Strategic Partnership,Room Hire,12/09/2012,469574,73.00,SALTERBECK ACE                ,A00273,6,2012
Allerdale Borough Council,DE01,Supplies and Services,Senior Management/PA - Pay Groups,Consultants Fees,26/09/2012,469575,1500.00,BADENOCH & CLARK              ,A01355,6,2012
Allerdale Borough Council,DE01,Supplies and Services,Senior Management/PA - Pay Groups,Consultants Fees,19/09/2012,469576,2000.00,BADENOCH & CLARK              ,A01355,6,2012
Allerdale Borough Council,DE01,Supplies and Services,Senior Management/PA - Pay Groups,Consultants Fees,19/09/2012,469577,2000.00,BADENOCH & CLARK              ,A01355,6,2012
Allerdale Borough Council,DE01,Supplies and Services,Senior Management/PA - Pay Groups,Consultants Fees,12/09/2012,469578,2500.00,BADENOCH & CLARK              ,A01355,6,2012
Allerdale Borough Council,DE01,Supplies and Services,Senior Management/PA - Pay Groups,Consultants Fees,12/09/2012,469579,2000.00,BADENOCH & CLARK              ,A01355,6,2012
Allerdale Borough Council,DE01,Supplies and Services,Senior Management/PA - Pay Groups,Consultants Fees,12/09/2012,469580,2000.00,BADENOCH & CLARK              ,A01355,6,2012
Allerdale Borough Council,DE01,Supplies and Services,Senior Management/PA - Pay Groups,Consultants Fees,19/09/2012,469581,2000.00,BADENOCH & CLARK              ,A01355,6,2012
Allerdale Borough Council,DE01,Supplies and Services,Senior Management/PA - Pay Groups,Consultants Fees,19/09/2012,469582,1500.00,BADENOCH & CLARK              ,A01355,6,2012
Allerdale Borough Council,DE01,Supplies and Services,Senior Management/PA - Pay Groups,Consultants Fees,19/09/2012,469583,2000.00,BADENOCH & CLARK              ,A01355,6,2012
Allerdale Borough Council,DE01,Supplies and Services,Senior Management/PA - Pay Groups,Consultants Fees,19/09/2012,469584,1500.00,BADENOCH & CLARK              ,A01355,6,2012
Allerdale Borough Council,BD02,Premises related expenditure,Homelessness,Electricity,12/09/2012,469585,45.00,MEPOS LIMITED                 ,A01286,6,2012
Allerdale Borough Council,QE02,Capital Expenditure,IT Infrastructure,Purchase of Fixed Plant & Equipment,03/10/2012,469586,101.57,PROBRAND                      ,A00040,6,2012
Allerdale Borough Council,BC03,Premises related expenditure,Corporate Property,Cleaning - windows,12/09/2012,469587,234.85,J A LEE WINDOW & GENERAL CLEAN,A00051,6,2012
Allerdale Borough Council,EA04,Third Party Payments,Recycling,Horticulture,12/09/2012,469588,374.87,FCC RECYCLING (UK) LTD (ALCO) ,A00185,6,2012
Allerdale Borough Council,XC02,Holding and Control Accounts,Busy Bees Childcare Scheme,Holding Accounts General - Expenditure,12/09/2012,469589,1755.00,COMPUTERSHARE VOUCHER SERVICES,A00991,6,2012
Allerdale Borough Council,XC02,Holding and Control Accounts,Busy Bees Childcare Scheme,Holding Accounts General - Expenditure,12/09/2012,469590,96.53,COMPUTERSHARE VOUCHER SERVICES,A00991,6,2012
Allerdale Borough Council,DE02,Supplies and Services,Legal Services - Pay Groups,Land Registry Fees,02/10/2012,469591,24.00,HM LAND REGISTRY-DIRECT DEBIT ,A00505,6,2012
Allerdale Borough Council,DD01,Supplies and Services,Finance and Accounting - Pay Groups,General stationery,14/09/2012,469592,6.60,BARCLAYCARD COMMERCIAL        ,X00207,6,2012
Allerdale Borough Council,DA01,Supplies and Services,ES - Parks and Grounds Maintenance,Equipment Costs,12/09/2012,469593,96.00,Redacted information - included personal information ,C00008,6,2012
Allerdale Borough Council,DK02,Supplies and Services,Town Centre Management,Regeneration Initiatives,06/09/2012,469594,450.00,Redacted information - included personal information ,A01347,6,2012
Allerdale Borough Council,EA04,Third Party Payments,Recycling,Horticulture,12/09/2012,469595,244.25,THOMPSONS PLANT HIRE LTD      ,A00262,6,2012
Allerdale Borough Council,EA04,Third Party Payments,Recycling,Horticulture,12/09/2012,469596,3402.40,THOMPSONS PLANT HIRE LTD      ,A00262,6,2012
Allerdale Borough Council,EA04,Third Party Payments,Recycling,Horticulture,12/09/2012,469597,4518.00,THOMPSONS PLANT HIRE LTD      ,A00262,6,2012
Allerdale Borough Council,DE99,Supplies and Services,Licensing Service,Other Fees,02/10/2012,469598,132.00,CRIMINAL RECORDS BUR-D DEBIT  ,X00041,6,2012
Allerdale Borough Council,BD08,Premises related expenditure,Corporate Property,Water & Sewage,12/09/2012,469599,37.83,UNITED UTILITIES,X00011,6,2012
Allerdale Borough Council,BD08,Premises related expenditure,Corporate Property,Water & Sewage,12/09/2012,469600,21.48,UNITED UTILITIES ,X00011,6,2012
Allerdale Borough Council,DE99,Supplies and Services,Out of Hours Telephones,Other Fees,26/09/2012,469601,15.80,SITEXORBIS LIMITED            ,A00679,6,2012
Allerdale Borough Council,DE99,Supplies and Services,Out of Hours Telephones,Other Fees,26/09/2012,469602,576.60,SITEXORBIS LIMITED            ,A00679,6,2012
Allerdale Borough Council,BD02,Premises related expenditure,Corporate Property,Electricity,12/09/2012,469603,464.57,EDF ENERGY,X00019,6,2012
Allerdale Borough Council,BD02,Premises related expenditure,Corporate Property,Electricity,12/09/2012,469604,7223.19,EDF ENERGY,X00019,6,2012
Allerdale Borough Council,BD02,Premises related expenditure,Corporate Property,Electricity,12/09/2012,469605,143.59,EDF ENERGY,X00019,6,2012
Allerdale Borough Council,BD02,Premises related expenditure,Corporate Property,Electricity,12/09/2012,469606,1591.49,EDF ENERGY ,X00019,6,2012
Allerdale Borough Council,BA01,Premises related expenditure,Corporate Property,External Maintenance & Decoration,12/09/2012,469607,124.00,Redacted information - included personal information ,C00008,6,2012
Allerdale Borough Council,BD08,Premises related expenditure,Corporate Property,Water & Sewage,12/09/2012,469608,48.07,UNITED UTILITIES,X00011,6,2012
Allerdale Borough Council,BD08,Premises related expenditure,Corporate Property,Water & Sewage,12/09/2012,469609,6.28,UNITED UTILITIES,X00011,6,2012
Allerdale Borough Council,AB02,Employee related expenditure,Corporate Recruitment,Medical Screening,03/10/2012,469610,424.36,WELLWORK LTD                  ,A00029,6,2012
Allerdale Borough Council,QE02,Capital Expenditure,IT Infrastructure,Purchase of Fixed Plant & Equipment,26/09/2012,469611,1875.00,CORPORATE PROJECT SOLUTIONS LTD,A01646,6,2012
Allerdale Borough Council,BA01,Premises related expenditure,Corporate Property,External Maintenance & Decoration,19/09/2012,469612,190.00,FIRTH FABRICATION SERVICES    ,C00020,6,2012
Allerdale Borough Council,DA03,Supplies and Services,ES - Public Convenience Cleaning,Purchase of Materials,19/09/2012,469613,5.85,INSTOCK (CHANDLERS)           ,A00050,6,2012
Allerdale Borough Council,DF03,Supplies and Services,Document Management - Pay Groups,Franking Machine Costs other,03/10/2012,469614,300.00,FP EXECUTIVE AGENCY LTD       ,A00733,6,2012
Allerdale Borough Council,DH11,Supplies and Services,Shared IT,Software Maintenance,          ,469615,2000.00,CIVICA UK LIMITED             ,A00006,6,2012
Allerdale Borough Council,BA03,Premises related expenditure,Coastal Protection and Inland Flooding,Grounds,12/09/2012,469616,98.00,FIRTH FABRICATION SERVICES    ,C00020,6,2012
Allerdale Borough Council,BC05,Premises related expenditure,Corporate Property,Inspections and Services,12/09/2012,469617,98.00,AQUAID (NORTH)                ,A00123,6,2012
Allerdale Borough Council,DD05,Supplies and Services,Leisure - Carnegie Theatre,Use of External Printers,19/09/2012,469618,992.00,FIRPRESS PRINTERS             ,A00063,6,2012
Allerdale Borough Council,DA01,Supplies and Services,Domestic Waste,Equipment Costs,03/10/2012,469619,2913.00,CRAEMER UK LTD                ,A01016,6,2012
Allerdale Borough Council,QE02,Capital Expenditure,IT Infrastructure,Purchase of Fixed Plant & Equipment,03/10/2012,469620,14.96,PROBRAND                      ,A00040,6,2012
Allerdale Borough Council,DE01,Supplies and Services,Homelessness,Consultants Fees,12/09/2012,469621,50.00,MARYPORT HEALTH SERVICES      ,A00421,6,2012
Allerdale Borough Council,AD01,Employee related expenditure,Environmental Health - Pay Groups,Agency Costs,12/09/2012,469622,420.45,OSBORNE RICHARDSON            ,A00206,6,2012
Allerdale Borough Council,DB02,Supplies and Services,Leisure - Carnegie Theatre,Bar Provision,02/10/2012,469623,454.06,BOOKER CASH AND CARRY         ,A01419,6,2012
Allerdale Borough Council,DG04,Supplies and Services,Shared IT,Mobile Phones,26/09/2012,469624,150.00,SITEXORBIS LIMITED            ,A00679,6,2012
Allerdale Borough Council,DE07,Supplies and Services,Land Charges Service,Searches,03/10/2012,469625,2349.70,CUMBRIA COUNTY COUNCIL        ,A00920,6,2012
Allerdale Borough Council,DA01,Supplies and Services,Leisure - Carnegie Theatre,Equipment Costs,03/10/2012,469626,285.00,AARDVARK & ZAJAC UPHOLSTERY   ,A01682,6,2012
Allerdale Borough Council,DG02,Supplies and Services,Out of Hours Telephones,Line Rentals,12/09/2012,469627,68.86,BRITISH TELECOM         ,X00004,6,2012
Allerdale Borough Council,DG03,Supplies and Services,Leisure - Carnegie Theatre,Call Charges,12/09/2012,469628,450.84,BRITISH TELECOM        ,X00004,6,2012
Allerdale Borough Council,DA01,Supplies and Services,Trade Waste,Equipment Costs,03/10/2012,469629,1325.00,CRAEMER UK LTD                ,A01016,6,2012
Allerdale Borough Council,EB01,Third Party Payments,Bereavement Services,Horticulture,12/09/2012,469630,16691.04,ISS WATERERS LANDSCAPE        ,C00044,6,2012
Allerdale Borough Council,DM99,Supplies and Services,Enterprise Coaches,General,12/09/2012,469631,96.63,BRITISH TELECOM        ,X00004,6,2012
Allerdale Borough Council,BC07,Premises related expenditure,ES - Public Convenience Cleaning,Fixtures and Fittings,19/09/2012,469632,69.95,PHS GROUP LTD                 ,C00028,6,2012
Allerdale Borough Council,AF01,Employee related expenditure,Licensing - Pay Group,External Courses & Seminar Fees,10/10/2012,469633,125.00,THE INSTITUTE OF LICENSING    ,A00315,6,2012
Allerdale Borough Council,CA05,Transport related expenditure,Asset Management - Pay Groups,"Fuel, Lubricants & Consummables",          ,469634,53.38,BP OIL UK LTD                 ,X00022,6,2012
Allerdale Borough Council,EA15,Third Party Payments,Wigton Community Centre,Voluntary Organisations,12/09/2012,469636,75.00,VULCANS PARK BOWLING CLUB     ,M01705,6,2012
Allerdale Borough Council,DE14,Supplies and Services,Mayor's Fund,Public Entertaiment,19/09/2012,469638,182.66,ST MARY WESTFIELD             ,A00706,6,2012
Allerdale Borough Council,DK02,Supplies and Services,Town Centre Management,Regeneration Initiatives,03/10/2012,469642,450.00,Redacted information - included personal information ,A01317,6,2012
Allerdale Borough Council,QF05,Capital Expenditure,Housing Act 1989 - Facilities for Disabled,To Private Individuals,19/09/2012,469643,9000.00,K BAILIFF & SON LIMITED       ,X00116,6,2012
Allerdale Borough Council,QF05,Capital Expenditure,Housing Act 1989 - Facilities for Disabled,To Private Individuals,19/09/2012,469644,9600.00,K BAILIFF & SON LIMITED       ,X00116,6,2012
Allerdale Borough Council,QF05,Capital Expenditure,Housing Act 1989 - Facilities for Disabled,To Private Individuals,19/09/2012,469645,2642.00,LAMBERT-GILL LTD              ,X00169,6,2012
Allerdale Borough Council,DE14,Supplies and Services,Leisure - Carnegie Theatre,Public Entertaiment,19/09/2012,469646,2104.00,SILLOTH FESTIVALS LTD ,M01508,6,2012
Allerdale Borough Council,AF01,Employee related expenditure,Environmental Health - Pay Groups,External Courses & Seminar Fees,10/10/2012,469647,250.00,THE INSTITUTE OF LICENSING    ,A00315,6,2012
Allerdale Borough Council,BC05,Premises related expenditure,Corporate Property,Inspections and Services,19/09/2012,469648,69.95,PHS GROUP LTD                 ,C00028,6,2012
Allerdale Borough Council,BA01,Premises related expenditure,Corporate Property,External Maintenance & Decoration,10/10/2012,469649,1263.00,JOHN ELLIOTT LTD                 ,C00023,6,2012
Allerdale Borough Council,DI03,Supplies and Services,Members Services,"Courses, Training, Seminars",02/10/2012,469650,320.00,GOVERNMENT KNOWLEDGE EVENTS LT,A01642,6,2012
Allerdale Borough Council,CA01,Transport related expenditure,Homelessness,Vehicle Leasing,24/10/2012,469651,156.21,ARVAL LTD                     ,A00545,6,2012
Allerdale Borough Council,QE02,Capital Expenditure,IT Infrastructure,Purchase of Fixed Plant & Equipment,19/09/2012,469652,10210.00,CARLISLE CITY COUNCIL         ,A00161,6,2012
Allerdale Borough Council,BD03,Premises related expenditure,Corporate Property,Gas,19/09/2012,469653,96.95,BRITISH GAS       ,X00006,6,2012
Allerdale Borough Council,BD03,Premises related expenditure,Corporate Property,Gas,19/09/2012,469654,79.11,BRITISH GAS       ,X00006,6,2012
Allerdale Borough Council,BD03,Premises related expenditure,Corporate Property,Gas,19/09/2012,469655,126.98,BRITISH GAS       ,X00006,6,2012
Allerdale Borough Council,BD03,Premises related expenditure,Corporate Property,Gas,19/09/2012,469656,251.65,BRITISH GAS       ,X00006,6,2012
Allerdale Borough Council,BD03,Premises related expenditure,Corporate Property,Gas,19/09/2012,469657,2089.05,BRITISH GAS       ,X00006,6,2012
Allerdale Borough Council,BD03,Premises related expenditure,Corporate Property,Gas,19/09/2012,469658,91.70,BRITISH GAS       ,X00006,6,2012
Allerdale Borough Council,BD03,Premises related expenditure,Corporate Property,Gas,19/09/2012,469659,91.27,BRITISH GAS       ,X00006,6,2012
Allerdale Borough Council,BD08,Premises related expenditure,Corporate Property,Water & Sewage,19/09/2012,469660,71.91,UNITED UTILITIES,X00011,6,2012
Allerdale Borough Council,DD02,Supplies and Services, ,Photocopier Charges,03/10/2012,469661,3764.70,KONICA MINOLTA BUSI SOLU UK LTD,A01556,6,2012
Allerdale Borough Council,BD02,Premises related expenditure,Corporate Property,Electricity,19/09/2012,469666,2827.70,NPOWER           ,X00015,6,2012
Allerdale Borough Council,BD02,Premises related expenditure,Corporate Property,Electricity,19/09/2012,469667,125.67,NPOWER             ,X00015,6,2012
Allerdale Borough Council,BC06,Premises related expenditure,Corporate Property,Legionella Inspections and Services,19/09/2012,469672,99.26,RENTOKIL INITIAL UK LTD       ,A00500,6,2012
Allerdale Borough Council,CA05,Transport related expenditure,ES - Street Cleansing,"Fuel, Lubricants & Consummables",          ,469673,38.21,BP OIL UK LTD                 ,X00022,6,2012
Allerdale Borough Council,DD01,Supplies and Services,Planning and Development ,General stationery,19/09/2012,469674,105.22,INTEGRITY OFFICE LTD          ,A00726,6,2012
Allerdale Borough Council,DA03,Supplies and Services,ES - Public Convenience Cleaning,Purchase of Materials,19/09/2012,469675,775.84,INSTOCK (CHANDLERS)           ,A00050,6,2012
Allerdale Borough Council,QC01,Capital Expenditure,Carnegie Redevelopment,External Contractor Payments,19/09/2012,469676,2136.67,WHALEYS (BRADFORD) LTD        ,A01672,6,2012
Allerdale Borough Council,QC01,Capital Expenditure,Carnegie Redevelopment,External Contractor Payments,19/09/2012,469677,1197.50,Redacted information - included personal information ,C00008,6,2012
Allerdale Borough Council,BA01,Premises related expenditure,Corporate Property,External Maintenance & Decoration,19/09/2012,469678,72.00,Redacted information - included personal information ,C00008,6,2012
Allerdale Borough Council,DD01,Supplies and Services, ,General stationery,10/10/2012,469679,430.00,XEROX OFFICE SUPPLIES         ,A00366,6,2012
Allerdale Borough Council,AF01,Employee related expenditure,Planning and Development ,External Courses & Seminar Fees,19/09/2012,469680,400.00,CUMBRIA CC   ,A00066,6,2012
Allerdale Borough Council,DK01,Supplies and Services,Planning and Development ,Statutory Notices,19/09/2012,469681,1155.20,CUMBRIA CC - 3C STUDIO ONLY   ,A00070,6,2012
Allerdale Borough Council,DK01,Supplies and Services,Planning and Development ,Statutory Notices,19/09/2012,469682,934.40,CUMBRIA CC - 3C STUDIO ONLY   ,A00070,6,2012
Allerdale Borough Council,DK01,Supplies and Services,Planning and Development ,Statutory Notices,19/09/2012,469683,1194.40,CUMBRIA CC - 3C STUDIO ONLY   ,A00070,6,2012
Allerdale Borough Council,DG02,Supplies and Services,Shared IT,Line Rentals,19/09/2012,469687,24.99,MANX TELECOM LTD              ,A01265,6,2012
Allerdale Borough Council,DG02,Supplies and Services,Shared IT,Line Rentals,19/09/2012,469688,13.39,MANX TELECOM LTD              ,A01265,6,2012
Allerdale Borough Council,QC01,Capital Expenditure,Keswick Museum Enhancement Project,External Contractor Payments,26/09/2012,469689,693.00,G RYDER AND CO                ,A01658,6,2012
Allerdale Borough Council,DA03,Supplies and Services,ES - Public Convenience Cleaning,Purchase of Materials,19/09/2012,469690,4.50,INSTOCK (CHANDLERS)           ,A00050,6,2012
Allerdale Borough Council,DH11,Supplies and Services,Shared IT,Software Maintenance,26/09/2012,469691,2966.29,MIDLAND SOFTWARE LTD          ,A00296,6,2012
Allerdale Borough Council,DH11,Supplies and Services,Shared IT,Software Maintenance,26/09/2012,469692,5848.18,MIDLAND SOFTWARE LTD          ,A00296,6,2012
Allerdale Borough Council,BC05,Premises related expenditure, ,Inspections and Services,          ,469693,462.00,MAGPIE SERVICE,A00261,6,2012
Allerdale Borough Council,EA04,Third Party Payments,Recycling,Horticulture,19/09/2012,469694,3215.00,THOMPSONS PLANT HIRE LTD      ,A00262,6,2012
Allerdale Borough Council,QE02,Capital Expenditure,IT Infrastructure,Purchase of Fixed Plant & Equipment,19/09/2012,469695,735.00,VODAFONE     ,A00551,6,2012
Allerdale Borough Council,DC01,Supplies and Services,Parking Services - Pay Groups,Uniforms,03/10/2012,469696,161.42,ARCO LIMITED                  ,A00045,6,2012
Allerdale Borough Council,EA04,Third Party Payments,Recycling,Horticulture,19/09/2012,469697,128.00,THOMPSONS PLANT HIRE LTD      ,A00262,6,2012
Allerdale Borough Council,DK99,Supplies and Services,Communications and Marketing,Promotions General,10/10/2012,469698,250.00,CUMBRIAN NEWSPAPERS LIMITED   ,A00869,6,2012
Allerdale Borough Council,EA04,Third Party Payments,Recycling,Horticulture,19/09/2012,469699,1975.20,THOMPSONS PLANT HIRE LTD      ,A00262,6,2012
Allerdale Borough Council,XC02,Holding and Control Accounts,Allerdale House Tea Fund,Holding Accounts General - Expenditure,03/10/2012,469700,87.60,TELK LTD                      ,A01670,6,2012
Allerdale Borough Council,EA04,Third Party Payments,Recycling,Horticulture,19/09/2012,469701,1028.80,THOMPSONS PLANT HIRE LTD      ,A00262,6,2012
Allerdale Borough Council,DA03,Supplies and Services,Recycling,Purchase of Materials,19/09/2012,469702,225.00,CUMBRIAN NEWSPAPERS LIMITED   ,A00869,6,2012
Allerdale Borough Council,DA03,Supplies and Services,Recycling,Purchase of Materials,19/09/2012,469703,2987.50,CUMBRIAN NEWSPAPERS LIMITED   ,A00869,6,2012
Allerdale Borough Council,DA03,Supplies and Services,Recycling,Purchase of Materials,19/09/2012,469704,2987.50,CUMBRIAN NEWSPAPERS LIMITED   ,A00869,6,2012
Allerdale Borough Council,CA05,Transport related expenditure,Shared IT Paygroup,"Fuel, Lubricants & Consummables",          ,469705,47.64,BP OIL UK LTD                 ,X00022,6,2012
Allerdale Borough Council,CA05,Transport related expenditure,Asset Management - Pay Groups,"Fuel, Lubricants & Consummables",          ,469706,48.51,BP OIL UK LTD                 ,X00022,6,2012
Allerdale Borough Council,DA03,Supplies and Services,Animal Welfare,Purchase of Materials,19/09/2012,469707,17.87,GALEMIRE VETERINARY HOSPITAL  ,A00328,6,2012
Allerdale Borough Council,BC07,Premises related expenditure,Corporate Property,Fixtures and Fittings,03/10/2012,469708,124.56,THYSSENKRUPP ELEVATOR UK LTD  ,C00072,6,2012
Allerdale Borough Council,BC03,Premises related expenditure,Corporate Property,Cleaning - windows,19/09/2012,469709,210.00,Redacted information - included personal information ,A00259,6,2012
Allerdale Borough Council,DA01,Supplies and Services,Recycling,Equipment Costs,10/10/2012,469710,181.00,PLASTIC OMNIUM URBAN SYST LTD ,A00159,6,2012
Allerdale Borough Council,DD02,Supplies and Services,Silloth TIC,Photocopier Charges,10/10/2012,469711,95.90,CENTRAL ASSET FINANCE LIMITED ,A01236,6,2012
Allerdale Borough Council,DA01,Supplies and Services,Environmental Protection,Equipment Costs,10/10/2012,469712,275.50,BRUEL & KJAER UK LTD          ,A00048,6,2012
Allerdale Borough Council,DK99,Supplies and Services,Communications and Marketing,Promotions General,26/09/2012,469713,101.39,GIRAFFE DESIGN,C00115,6,2012
Allerdale Borough Council,DK99,Supplies and Services,Communications and Marketing,Promotions General,26/09/2012,469714,123.34,GIRAFFE DESIGN,C00115,6,2012
Allerdale Borough Council,BA03,Premises related expenditure,Coastal Protection and Inland Flooding,Grounds,19/09/2012,469715,125.00,FIRTH FABRICATION SERVICES    ,C00020,6,2012
Allerdale Borough Council,DE14,Supplies and Services,Leisure - Carnegie Theatre,Public Entertaiment,10/10/2012,469716,145.00,Redacted information - included personal information ,A01510,6,2012
Allerdale Borough Council,DF01,Supplies and Services,Revenue,Postage,19/09/2012,469717,300.00,ROYAL MAIL LETTERS            ,X00021,6,2012
Allerdale Borough Council,DI03,Supplies and Services,Members Services,"Courses, Training, Seminars",19/09/2012,469718,130.00,CARLISLE CITY COUNCIL         ,A00161,6,2012
Allerdale Borough Council,EA99,Third Party Payments,Leisure - Carnegie Theatre,General,03/10/2012,469719,100.00,SPC SECURITY                  ,A01457,6,2012
Allerdale Borough Council,BC06,Premises related expenditure,Corporate Property,Legionella Inspections and Services,03/10/2012,469721,173.72,RENTOKIL INITIAL UK LTD       ,A00500,6,2012
Allerdale Borough Council,EA04,Third Party Payments,Recycling,Horticulture,19/09/2012,469722,537.13,FCC RECYCLING (UK) LTD (ALCO) ,A00185,6,2012
Allerdale Borough Council,BB01,Premises related expenditure,Corporate Property,Internal Maintenance,26/09/2012,469723,110.00,BB GLASS LTD                  ,C00001,6,2012
Allerdale Borough Council,DA03,Supplies and Services,Pest Control,Purchase of Materials,10/10/2012,469724,196.45,KILLGERM CHEMICALS LTD        ,A00361,6,2012
Allerdale Borough Council,DA01,Supplies and Services,ES - Street Cleansing,Equipment Costs,10/10/2012,469725,1400.70,HARRISONS PACKAGING           ,A00417,6,2012
Allerdale Borough Council,DE13,Supplies and Services,Leisure - Carnegie Theatre,Subcontractors - General,26/09/2012,469726,74.25,R W AUDIO                     ,C00059,6,2012
Allerdale Borough Council,DE13,Supplies and Services,Leisure - Carnegie Theatre,Subcontractors - General,26/09/2012,469727,726.00,R W AUDIO                     ,C00059,6,2012
Allerdale Borough Council,DB02,Supplies and Services,Leisure - Carnegie Theatre,Bar Provision,19/09/2012,469728,29.21,SOLWAY HEATERS LTD            ,A00305,6,2012
Allerdale Borough Council,DH08,Supplies and Services, ,Computer Consumables,10/10/2012,469729,26.72,INSIGHT DIRECT (UK) LTD       ,A00054,6,2012
Allerdale Borough Council,DK02,Supplies and Services,Leisure - Arts Development,Regeneration Initiatives,19/09/2012,469730,114.75,KIRKGATE ARTS                 ,A01090,6,2012
Allerdale Borough Council,XC02,Holding and Control Accounts,Allerdale House Tea Fund,Holding Accounts General - Expenditure,19/09/2012,469731,90.00,TELK LTD                      ,A01670,6,2012
Allerdale Borough Council,EB02,Third Party Payments,ES - Street Cleansing,Street Cleansing,19/09/2012,469732,93701.83,FCC ENVIRONMENT SERV (FOCSA)  ,A00085,6,2012
Allerdale Borough Council,CA04,Transport related expenditure,ES - Public Convenience Cleaning,Repairs & Maintenance ,19/09/2012,469733,111.95,FCC ENVIRONMENT SERV (FOCSA)  ,A00085,6,2012
Allerdale Borough Council,DH08,Supplies and Services,Shared IT,Computer Consumables,10/10/2012,469735,26.06,MISCO                         ,A00125,6,2012
Allerdale Borough Council,DG02,Supplies and Services,Shared IT,Line Rentals,19/09/2012,469736,114.27,BRITISH TELECOM       ,X00004,6,2012
Allerdale Borough Council,BA03,Premises related expenditure,Coastal Protection and Inland Flooding,Grounds,10/10/2012,469737,42256.08,R H IRVING CONSTRUCTION LTD   ,C00103,6,2012
Allerdale Borough Council,DA01,Supplies and Services,Planning Policy,Equipment Costs,19/09/2012,469738,55.61,K&R BADGES LIMITED            ,A01328,6,2012
Allerdale Borough Council,QC01,Capital Expenditure,Capital - Housing Slum Clearance Areas,External Contractor Payments,19/09/2012,469739,80.00,HIGH COURT ENFORCEMENT        ,A00654,6,2012
Allerdale Borough Council,DB02,Supplies and Services,Leisure - Carnegie Theatre,Bar Provision,19/09/2012,469740,11.84,SOLWAY HEATERS LTD            ,A00305,6,2012
Allerdale Borough Council,DE10,Supplies and Services, ,Disposal of Waste,10/10/2012,469741,90.00,P&W CONFIDENTIAL BUSINESS SERV,A01498,6,2012
Allerdale Borough Council,DH03,Supplies and Services,Shared IT,Hardware Purchase,10/10/2012,469742,224.84,MISCO                         ,A00125,6,2012
Allerdale Borough Council,BA01,Premises related expenditure,Corporate Property,External Maintenance & Decoration,10/10/2012,469743,80.75,JOHN ELLIOTT LTD                 ,C00023,6,2012
Allerdale Borough Council,EB01,Third Party Payments,Bereavement Services,Horticulture,19/09/2012,469744,681.33,ISS WATERERS LANDSCAPE        ,C00044,6,2012
Allerdale Borough Council,QF05,Capital Expenditure,Derwentside Renewal Works,To Private Individuals,19/09/2012,469752,2000.00,Redacted information - included personal information ,M01828,6,2012
Allerdale Borough Council,BD08,Premises related expenditure,Corporate Property,Water & Sewage,19/09/2012,469754,1579.19,UNITED UTILITIES,X00011,6,2012
Allerdale Borough Council,BD08,Premises related expenditure,Corporate Property,Water & Sewage,19/09/2012,469755,175.47,UNITED UTILITIES,X00011,6,2012
Allerdale Borough Council,BD08,Premises related expenditure,Corporate Property,Water & Sewage,19/09/2012,469756,1523.15,UNITED UTILITIES ,X00011,6,2012
Allerdale Borough Council,BD02,Premises related expenditure,Corporate Property,Electricity,19/09/2012,469758,8.28,NPOWER          ,X00015,6,2012
Allerdale Borough Council,BD02,Premises related expenditure,Corporate Property,Electricity,19/09/2012,469759,5.72,NPOWER          ,X00015,6,2012
Allerdale Borough Council,BD02,Premises related expenditure,Corporate Property,Electricity,19/09/2012,469760,40.01,NPOWER          ,X00015,6,2012
Allerdale Borough Council,BD02,Premises related expenditure,Corporate Property,Electricity,19/09/2012,469761,100.46,NPOWER          ,X00015,6,2012
Allerdale Borough Council,BD02,Premises related expenditure,Corporate Property,Electricity,19/09/2012,469762,398.37,NPOWER          ,X00015,6,2012
Allerdale Borough Council,BD02,Premises related expenditure,Corporate Property,Electricity,19/09/2012,469763,269.91,NPOWER          ,X00015,6,2012
Allerdale Borough Council,BD02,Premises related expenditure,Corporate Property,Electricity,19/09/2012,469764,161.03,NPOWER          ,X00015,6,2012
Allerdale Borough Council,EA01,Third Party Payments,ES - Public Convenience Cleaning,Cleansing,19/09/2012,469765,400.00,LINDOW HALL                   ,A00165,6,2012
Allerdale Borough Council,AE01,Employee related expenditure,Corporate Recruitment,Advertising vacancies,26/09/2012,469766,1000.00,RETOX DIGITAL LIMITED         ,A01571,6,2012
Allerdale Borough Council,BB03,Premises related expenditure,Corporate Property,Plumbing and Heating Maintenance,19/09/2012,469767,95.00,O'CONNELL & BEAN(MECH&ELEC)LTD,C00078,6,2012
Allerdale Borough Council,DH10,Supplies and Services,Shared IT,Software Licences,19/09/2012,469768,3000.00,COMMUNITYPEOPLE LTD           ,A01662,6,2012
Allerdale Borough Council,BD08,Premises related expenditure,Corporate Property,Water & Sewage,19/09/2012,469769,105.51,UNITED UTILITIES ,X00011,6,2012
Allerdale Borough Council,BD08,Premises related expenditure,Corporate Property,Water & Sewage,19/09/2012,469770,943.50,UNITED UTILITIES ,X00011,6,2012
Allerdale Borough Council,BD08,Premises related expenditure,Corporate Property,Water & Sewage,19/09/2012,469771,34.99,UNITED UTILITIES ,X00011,6,2012
Allerdale Borough Council,BD08,Premises related expenditure,Corporate Property,Water & Sewage,19/09/2012,469772,20.94,UNITED UTILITIES ,X00011,6,2012
Allerdale Borough Council,BD08,Premises related expenditure,Corporate Property,Water & Sewage,19/09/2012,469773,211.57,UNITED UTILITIES ,X00011,6,2012
Allerdale Borough Council,DB02,Supplies and Services,Leisure - Carnegie Theatre,Bar Provision,02/10/2012,469774,306.32,BOOKER CASH AND CARRY         ,A01419,6,2012
Allerdale Borough Council,DD01,Supplies and Services,Revenue,General stationery,26/09/2012,469779,185.00,GROSVENOR PRINT & DESIGN      ,A00087,6,2012
Allerdale Borough Council,BB01,Premises related expenditure,Homelessness,Internal Maintenance,26/09/2012,469780,33.66,TRAVIS PERKINS                ,A00742,6,2012
Allerdale Borough Council,DH11,Supplies and Services,Shared IT,Software Maintenance,17/10/2012,469781,5815.00,ROL SOLUTIONS LTD             ,A01505,6,2012
Allerdale Borough Council,DE01,Supplies and Services,Food and Occupational Health,Consultants Fees,03/10/2012,469782,235.00,MPM NORTH WEST LTD            ,A00113,6,2012
Allerdale Borough Council,DM99,Supplies and Services,Housing - Strategic Function,General,26/09/2012,469783,6827.17,BOROUGH OF BARROW IN FURNESS  ,A00555,6,2012
Allerdale Borough Council,QF05,Capital Expenditure,Housing Act 1989 - Facilities for Disabled,To Private Individuals,26/09/2012,469784,1675.00,DOLPHIN STAIRLIFTS CUMBRIA    ,X00107,6,2012
Allerdale Borough Council,QF05,Capital Expenditure,Housing Act 1989 - Facilities for Disabled,To Private Individuals,26/09/2012,469785,3255.00,PRISM MEDICAL UK              ,X00195,6,2012
Allerdale Borough Council,QF05,Capital Expenditure,Housing Act 1989 - Facilities for Disabled,To Private Individuals,26/09/2012,469786,2960.17,C BAILEY & SON LTD            ,X00127,6,2012
Allerdale Borough Council,QF05,Capital Expenditure,Housing Act 1989 - Facilities for Disabled,To Private Individuals,26/09/2012,469787,1720.15,MAYSON BROS LTD               ,X00132,6,2012
Allerdale Borough Council,QF05,Capital Expenditure,Housing Act 1989 - Facilities for Disabled,To Private Individuals,26/09/2012,469788,3412.00,MAYSON BROS LTD               ,X00132,6,2012
Allerdale Borough Council,QF05,Capital Expenditure,Housing Act 1989 - Facilities for Disabled,To Private Individuals,26/09/2012,469789,780.00,TOTAL HYGIENE LTD             ,X00151,6,2012
Allerdale Borough Council,DE03,Supplies and Services,Food and Occupational Health,Court and Tribunal Costs,          ,469791,18.00,BARCLAYCARD COMMERCIAL        ,X00207,6,2012
Allerdale Borough Council,DD02,Supplies and Services, ,Photocopier Charges,10/10/2012,469792,1217.82,KONICA MINOLTA BUSI SOLU UK LTD,A01556,6,2012
Allerdale Borough Council,DD01,Supplies and Services,Planning and Development ,General stationery,03/10/2012,469793,30.06,INTEGRITY OFFICE LTD          ,A00726,6,2012
Allerdale Borough Council,DM99,Supplies and Services,Senior Management/PA - Pay Groups,General,26/09/2012,469794,36.50,ST MICHAELS CHURCH WORKINGTON ,A00255,6,2012
Allerdale Borough Council,DE01,Supplies and Services,Senior Management/PA - Pay Groups,Consultants Fees,10/10/2012,469795,2000.00,BADENOCH & CLARK              ,A01355,6,2012
Allerdale Borough Council,DE01,Supplies and Services,Senior Management/PA - Pay Groups,Consultants Fees,10/10/2012,469796,2000.00,BADENOCH & CLARK              ,A01355,6,2012
Allerdale Borough Council,QC01,Capital Expenditure,Keswick Museum Enhancement Project,External Contractor Payments,10/10/2012,469797,3014.90,LLOYD BORE LTD                ,A01112,6,2012
Allerdale Borough Council,QC01,Capital Expenditure,Keswick Museum Enhancement Project,External Contractor Payments,10/10/2012,469798,10.30,PRESERVATION EQUIPMENT LTD    ,A01188,6,2012
Allerdale Borough Council,DE99,Supplies and Services,Recycling,Other Fees,26/09/2012,469799,2282.53,SCOTTS HAULAGE                ,A00266,6,2012
Allerdale Borough Council,DA01,Supplies and Services,ES - Parks and Grounds Maintenance,Equipment Costs,26/09/2012,469800,300.02,TRAVIS PERKINS                ,A00742,6,2012
Allerdale Borough Council,DE06,Supplies and Services,Redundancies,Professional Services,26/09/2012,469801,350.00,MILBURNS SOLICITORS           ,A00310,6,2012
Allerdale Borough Council,DE06,Supplies and Services,Legal Services - Pay Groups,Professional Services,10/10/2012,469802,1365.00,ST JOHNS BUILDINGS            ,A01647,6,2012
Allerdale Borough Council,DA04,Supplies and Services,Bereavement Services,Supplies for Resale,26/09/2012,469803,95.40,GRANART                       ,A00644,6,2012
Allerdale Borough Council,QC01,Capital Expenditure,Carnegie Redevelopment,External Contractor Payments,26/09/2012,469821,600.50,J & J ELECTRICAL (CUMBRIA) LTD,C00038,6,2012
Allerdale Borough Council,DD01,Supplies and Services,AONB Silloth,General stationery,10/10/2012,469822,118.00,VIKING DIRECT                 ,A00828,6,2012
Allerdale Borough Council,BC05,Premises related expenditure,Corporate Property,Inspections and Services,03/10/2012,469823,2672.00,J & J ELECTRICAL (CUMBRIA) LTD,C00038,6,2012
Allerdale Borough Council,DE01,Supplies and Services,Planning and Development ,Consultants Fees,26/09/2012,469824,875.00,KEPPIE MASSIE                 ,A01574,6,2012
Allerdale Borough Council,AD01,Employee related expenditure,Finance and Accounting - Pay Groups,Agency Costs,10/10/2012,469825,975.00,HAYS                          ,A00280,6,2012
Allerdale Borough Council,QC01,Capital Expenditure,Keswick Museum Enhancement Project,External Contractor Payments,10/10/2012,469826,25.25,PRESERVATION EQUIPMENT LTD    ,A01188,6,2012
Allerdale Borough Council,BD05,Premises related expenditure,Homelessness,Rentals and Lease Charges,26/09/2012,469827,1134.01,HOME GROUP LTD                ,A00423,6,2012
Allerdale Borough Council,DM99,Supplies and Services,Carnegie Redevelopment,General,26/09/2012,469828,3022.03,SYSTEM PEOPLE CARLISLE LTD    ,A01679,6,2012
Allerdale Borough Council,DM99,Supplies and Services,Insurances,General,26/09/2012,469829,395.00,TRAVELERS INSURANCE           ,A00945,6,2012
Allerdale Borough Council,DD04,Supplies and Services,Shared IT,Reference Materials (includes online charges),          ,469830,58.58,HSBC CARD SERVICES            ,X00000,6,2012
Allerdale Borough Council,DC02,Supplies and Services,Parking Services - Pay Groups,Protective Clothing,26/09/2012,469831,30.00,ARMSTRONGS - LINDEN/KAYTOOLS  ,A00091,6,2012
Allerdale Borough Council,DH11,Supplies and Services,Shared IT,Software Maintenance,          ,469832,333.33,CIVICA UK LIMITED             ,A00006,6,2012
Allerdale Borough Council,DA01,Supplies and Services,Offstreet - Owned,Equipment Costs,26/09/2012,469833,567.08,COBALT TELEPHONE TECHNOLOGIES ,A01008,6,2012
Allerdale Borough Council,DH12,Supplies and Services,Shared IT,Software Development,03/10/2012,469834,2140.00,QUANTIX                       ,A00195,6,2012
Allerdale Borough Council,CA04,Transport related expenditure,Offstreet - Owned,Repairs & Maintenance ,26/09/2012,469835,41.11,HI-Q TYRESERVICES             ,A00313,6,2012
Allerdale Borough Council,DA01,Supplies and Services,Offstreet - Owned,Equipment Costs,26/09/2012,469836,125.00,NAGELS MULTIGRAPHICS LTD      ,A00690,6,2012
Allerdale Borough Council,DG99,Supplies and Services,Shared IT,Other Telecommunications Costs,10/10/2012,469837,105.86,BT CONTRACT RENTALS           ,A01558,6,2012
Allerdale Borough Council,BD05,Premises related expenditure,Offstreet - Owned,Rentals and Lease Charges,10/10/2012,469838,5737.00,NATIONAL GRID PROPERTY LTD    ,A00645,6,2012
Allerdale Borough Council,EA04,Third Party Payments,Recycling,Horticulture,26/09/2012,469839,80.50,THOMPSONS PLANT HIRE LTD      ,A00262,6,2012
Allerdale Borough Council,EA04,Third Party Payments,Recycling,Horticulture,26/09/2012,469840,1998.40,THOMPSONS PLANT HIRE LTD      ,A00262,6,2012
Allerdale Borough Council,EA04,Third Party Payments,Recycling,Horticulture,26/09/2012,469841,2076.50,THOMPSONS PLANT HIRE LTD      ,A00262,6,2012
Allerdale Borough Council,DD01,Supplies and Services,Building Control,General stationery,03/10/2012,469842,48.69,INTEGRITY OFFICE LTD          ,A00726,6,2012
Allerdale Borough Council,DA01,Supplies and Services,Recycling,Equipment Costs,10/10/2012,469843,8183.35,BPI RECYCLED PRODUCTS         ,A00318,6,2012
Allerdale Borough Council,DE01,Supplies and Services,Corporate Improvement,Consultants Fees,26/09/2012,469844,5200.00,STRATEGIC NEGOTIATION SERV LTD,A01602,6,2012
Allerdale Borough Council,DE08,Supplies and Services,Building Control,Subscriptions,10/10/2012,469845,30.00,ROBUST DETAILS LTD            ,A00479,6,2012
Allerdale Borough Council,DK02,Supplies and Services,Town Centre Management,Regeneration Initiatives,17/10/2012,469846,25.00,SOLWAY PLAIN FUTURES LTD      ,A01194,6,2012
Allerdale Borough Council,DA03,Supplies and Services,ES - Public Convenience Cleaning,Purchase of Materials,03/10/2012,469847,577.00,INSTOCK (CHANDLERS)           ,A00050,6,2012
Allerdale Borough Council,DE02,Supplies and Services,Legal Services - Pay Groups,Land Registry Fees,02/10/2012,469850,54.00,HM LAND REGISTRY-DIRECT DEBIT ,A00505,6,2012
Allerdale Borough Council,DE02,Supplies and Services,Legal Services - Pay Groups,Land Registry Fees,02/10/2012,469851,19.00,HM LAND REGISTRY-DIRECT DEBIT ,A00505,6,2012
Allerdale Borough Council,DG01,Supplies and Services,Environmental Services - Pay Groups,Installation Costs,26/09/2012,469852,21.35,VODAFONE CORPORATE ,A00198,6,2012
Allerdale Borough Council,DF01,Supplies and Services,Environmental Services - Pay Groups,Postage,26/09/2012,469853,239.86,ROYAL MAIL LETTERS            ,X00021,6,2012
Allerdale Borough Council,BD02,Premises related expenditure,Corporate Property,Electricity,26/09/2012,469854,49.92,NPOWER             ,X00015,6,2012
Allerdale Borough Council,BD02,Premises related expenditure,Corporate Property,Electricity,26/09/2012,469855,66.40,NPOWER             ,X00015,6,2012
Allerdale Borough Council,BD02,Premises related expenditure,Corporate Property,Electricity,26/09/2012,469856,44.99,NPOWER             ,X00015,6,2012
Allerdale Borough Council,BD02,Premises related expenditure,Corporate Property,Electricity,26/09/2012,469857,26.72,NPOWER             ,X00015,6,2012
Allerdale Borough Council,BD02,Premises related expenditure,Corporate Property,Electricity,26/09/2012,469858,961.57,NPOWER             ,X00015,6,2012
Allerdale Borough Council,BD02,Premises related expenditure,Corporate Property,Electricity,26/09/2012,469859,961.41,NPOWER             ,X00015,6,2012
Allerdale Borough Council,BD02,Premises related expenditure,Corporate Property,Electricity,26/09/2012,469860,930.38,NPOWER             ,X00015,6,2012
Allerdale Borough Council,BD02,Premises related expenditure,Corporate Property,Electricity,26/09/2012,469861,1085.52,NPOWER             ,X00015,6,2012
Allerdale Borough Council,DG04,Supplies and Services,Shared IT,Mobile Phones,26/09/2012,469862,1344.93,VODAFONE       ,A00551,6,2012
Allerdale Borough Council,BA01,Premises related expenditure,Corporate Property,External Maintenance & Decoration,17/10/2012,469863,130.50,JOHN ELLIOTT LTD                 ,C00023,6,2012
Allerdale Borough Council,DG02,Supplies and Services,Crime Prevention,Line Rentals,26/09/2012,469864,130.59,BRITISH TELECOM        ,X00004,6,2012
Allerdale Borough Council,BD02,Premises related expenditure,Corporate Property,Electricity,26/09/2012,469865,1572.57,NPOWER             ,X00015,6,2012
Allerdale Borough Council,BD02,Premises related expenditure,Corporate Property,Electricity,26/09/2012,469866,11.48,NPOWER             ,X00015,6,2012
Allerdale Borough Council,BD02,Premises related expenditure,Corporate Property,Electricity,26/09/2012,469867,36.53,NPOWER             ,X00015,6,2012
Allerdale Borough Council,BD08,Premises related expenditure,Corporate Property,Water & Sewage,26/09/2012,469868,403.77,UNITED UTILITIES ,X00011,6,2012
Allerdale Borough Council,DE06,Supplies and Services,Building Control,Professional Services,03/10/2012,469869,950.00,BINGHAM YATES & PARTNERS      ,A00003,6,2012
Allerdale Borough Council,DE01,Supplies and Services,Food and Occupational Health,Consultants Fees,10/10/2012,469870,143.80,HEALTH PROTECTION AGENCY      ,A01082,6,2012
Allerdale Borough Council,CA01,Transport related expenditure,Mayoral Services,Vehicle Leasing,26/09/2012,469871,88.26,EILBECK MOTORS LIMITED        ,A01161,6,2012
Allerdale Borough Council,DH11,Supplies and Services,Shared IT,Software Maintenance,          ,469872,200.00,CIVICA UK LIMITED             ,A00006,6,2012
Allerdale Borough Council,DE14,Supplies and Services,Arts Engagement Project,Public Entertaiment,17/10/2012,469873,1500.00,HOWGILL FAMILY CENTRE         ,A01579,6,2012
Allerdale Borough Council,XF03,Holding and Control Accounts,Payroll Suspense Account,PAYROLL SEPTEMBER 12 Travel & Subsistence  ,,462862,14955.00,INLAND REVENUE - DIRECT,X00038,6,2012
